[Event "Live Chess"]
[Site "Chess.com"]
[Date "2024.06.02"]
[Round "-"]
[White "MagnersCarlsberg2870"]
[Black "upoe610"]
[Result "0-1"]
[WhiteElo "1768"]
[BlackElo "2136"]
[TimeControl "300"]
[EndTime "5:03:11 PDT"]
[Termination "upoe610 won by resignation"]

1. d4 {[%clk 0:04:57.4]} 1... Nf6 {[%clk 0:04:58.6]} 2. Nf3 {[%clk 0:04:56]}
2... c5 {[%clk 0:04:57.5]} 3. e3 {[%clk 0:04:54.5]} 3... g6 {[%clk 0:04:53.9]}
4. dxc5 {[%clk 0:04:48.7]} 4... Bg7 {[%clk 0:04:50.9]} 5. Bc4 {[%clk 0:04:47.2]}
5... O-O {[%clk 0:04:48]} 6. O-O {[%clk 0:04:42.7]} 6... Qc7 {[%clk 0:04:45.5]}
7. b4 {[%clk 0:04:39.1]} 7... Ne4 {[%clk 0:04:43.6]} 8. c3 {[%clk 0:04:33.5]}
8... Nxc3 {[%clk 0:04:41.1]} 9. Nxc3 {[%clk 0:04:32.2]} 9... Bxc3 {[%clk
0:04:41]} 10. Bd2 {[%clk 0:04:25.2]} 10... Bxa1 {[%clk 0:04:38.1]} 11. Qxa1
{[%clk 0:04:24.2]} 11... d6 {[%clk 0:04:35.1]} 12. e4 {[%clk 0:04:19.1]} 12...
Rd8 {[%clk 0:04:24.4]} 13. Bh6 {[%clk 0:04:17.5]} 13... e5 {[%clk 0:04:16.7]}
14. Rd1 {[%clk 0:04:10.6]} 14... Bg4 {[%clk 0:04:11.3]} 15. cxd6 {[%clk
0:03:58.2]} 15... Rxd6 {[%clk 0:03:56.1]} 16. Nxe5 {[%clk 0:03:42.1]} 16...
Rxd1+ {[%clk 0:03:52]} 17. Qxd1 {[%clk 0:03:40.3]} 17... Bxd1 {[%clk 0:03:51.9]}
18. Bxf7+ {[%clk 0:03:38.9]} 18... Kh8 {[%clk 0:03:50.4]} 19. Bd5 {[%clk
0:03:27.3]} 19... Qxe5 {[%clk 0:03:48.6]} 0-1

[Event "Live Chess"]
[Site "Chess.com"]
[Date "2024.06.02"]
[Round "-"]
[White "RuslanChessN"]
[Black "Bradfield133"]
[Result "1-0"]
[WhiteElo "1919"]
[BlackElo "1836"]
[TimeControl "300"]
[EndTime "5:03:26 PDT"]
[Termination "RuslanChessN won by resignation"]

1. d4 {[%clk 0:04:56.4]} 1... d6 {[%clk 0:04:58]} 2. c4 {[%clk 0:04:55.2]} 2...
f5 {[%clk 0:04:56.9]} 3. Nc3 {[%clk 0:04:52.7]} 3... Nf6 {[%clk 0:04:55.7]} 4.
Bg5 {[%clk 0:04:43.9]} 4... Nbd7 {[%clk 0:04:53.2]} 5. e3 {[%clk 0:04:42]} 5...
e5 {[%clk 0:04:43.6]} 6. Bd3 {[%clk 0:04:38.8]} 6... h6 {[%clk 0:04:36.6]} 7.
Bh4 {[%clk 0:03:40.1]} 7... e4 {[%clk 0:04:33.6]} 8. Be2 {[%clk 0:03:37.4]} 8...
Be7 {[%clk 0:04:32.3]} 9. Bh5+ {[%clk 0:03:33.7]} 9... Nxh5 {[%clk 0:04:30.2]}
10. Qxh5+ {[%clk 0:03:31.6]} 10... Kf8 {[%clk 0:04:30]} 11. Bg3 {[%clk
0:03:29.6]} 11... Qe8 {[%clk 0:04:26.1]} 12. Qxf5+ {[%clk 0:03:24.5]} 12... Nf6
{[%clk 0:04:24.6]} 13. Qa5 {[%clk 0:03:16.1]} 13... b6 {[%clk 0:04:20.2]} 14.
Qa3 {[%clk 0:03:10.7]} 14... Bb7 {[%clk 0:03:43.5]} 15. Nge2 {[%clk 0:03:03.8]}
15... g5 {[%clk 0:03:40.6]} 16. h4 {[%clk 0:02:59]} 16... Kg7 {[%clk 0:03:36.8]}
17. hxg5 {[%clk 0:02:54.4]} 17... hxg5 {[%clk 0:03:35.2]} 18. O-O-O {[%clk
0:02:53.2]} 18... Qf7 {[%clk 0:03:29]} 19. Qb3 {[%clk 0:02:48.2]} 19... Nh5
{[%clk 0:03:06.6]} 20. Rhf1 {[%clk 0:02:05.4]} 20... Bf6 {[%clk 0:02:39.2]} 21.
Kb1 {[%clk 0:01:53.2]} 21... Rae8 {[%clk 0:02:23.7]} 22. Nb5 {[%clk 0:01:47.2]}
22... a6 {[%clk 0:02:21.1]} 23. Nxc7 {[%clk 0:01:43.4]} 23... Qxc7 {[%clk
0:02:18.6]} 24. c5 {[%clk 0:01:37.9]} 24... bxc5 {[%clk 0:02:09.4]} 25. dxc5
{[%clk 0:01:35.5]} 25... dxc5 {[%clk 0:02:00.1]} 26. Bxc7 {[%clk 0:01:31.8]} 1-0

[Event "Live Chess"]
[Site "Chess.com"]
[Date "2024.06.02"]
[Round "-"]
[White "MaksymYurii"]
[Black "elis06"]
[Result "0-1"]
[WhiteElo "999"]
[BlackElo "2342"]
[TimeControl "300"]
[EndTime "5:03:36 PDT"]
[Termination "elis06 won by checkmate"]

1. e4 {[%clk 0:04:58.3]} 1... c6 {[%clk 0:04:58.4]} 2. Nf3 {[%clk 0:04:57.6]}
2... d5 {[%clk 0:04:57.6]} 3. e5 {[%clk 0:04:55.6]} 3... Bg4 {[%clk 0:04:54.6]}
4. Be2 {[%clk 0:04:53.6]} 4... e6 {[%clk 0:04:53.2]} 5. h3 {[%clk 0:04:51.9]}
5... Bxf3 {[%clk 0:04:51]} 6. Bxf3 {[%clk 0:04:50.4]} 6... Nd7 {[%clk
0:04:50.5]} 7. d4 {[%clk 0:04:47.8]} 7... c5 {[%clk 0:04:49.7]} 8. c3 {[%clk
0:04:46.1]} 8... Ne7 {[%clk 0:04:47.6]} 9. O-O {[%clk 0:04:42.5]} 9... Nc6
{[%clk 0:04:46.5]} 10. Bd2 {[%clk 0:04:19.4]} 10... cxd4 {[%clk 0:04:43.9]} 11.
cxd4 {[%clk 0:04:12.9]} 11... Nxd4 {[%clk 0:04:41.9]} 12. Bc3 {[%clk 0:04:12.1]}
12... Nxf3+ {[%clk 0:04:40.1]} 13. Qxf3 {[%clk 0:04:09.5]} 13... Be7 {[%clk
0:04:38.7]} 14. Nd2 {[%clk 0:04:03.9]} 14... O-O {[%clk 0:04:35.4]} 15. Nb3
{[%clk 0:04:02]} 15... Nc5 {[%clk 0:04:32.7]} 16. Bb4 {[%clk 0:03:52.8]} 16...
Nxb3 {[%clk 0:04:31.2]} 17. Bxe7 {[%clk 0:03:51.2]} 17... Qxe7 {[%clk
0:04:29.8]} 18. Qxb3 {[%clk 0:03:47.9]} 18... Rac8 {[%clk 0:04:28.4]} 19. Qa3
{[%clk 0:03:43.1]} 19... Qxa3 {[%clk 0:04:26.9]} 20. bxa3 {[%clk 0:03:42.4]}
20... Rc3 {[%clk 0:04:26.5]} 21. Rab1 {[%clk 0:03:40.9]} 21... b6 {[%clk
0:04:25.4]} 22. Rb3 {[%clk 0:03:38.7]} 22... Rxb3 {[%clk 0:04:24.2]} 23. axb3
{[%clk 0:03:38.6]} 23... Rc8 {[%clk 0:04:23.8]} 24. Rb1 {[%clk 0:03:33]} 24...
g6 {[%clk 0:04:22.5]} 25. b4 {[%clk 0:03:31.3]} 25... Rc3 {[%clk 0:04:21.1]} 26.
a4 {[%clk 0:03:29.4]} 26... Ra3 {[%clk 0:04:20]} 27. a5 {[%clk 0:03:19.8]} 27...
bxa5 {[%clk 0:04:19.2]} 28. bxa5 {[%clk 0:03:16.7]} 28... Rxa5 {[%clk
0:04:19.1]} 29. Rb7 {[%clk 0:03:15.1]} 29... Ra1+ {[%clk 0:04:17.9]} 30. Kh2
{[%clk 0:03:12.8]} 30... a5 {[%clk 0:04:17.4]} 31. Ra7 {[%clk 0:03:09.8]} 31...
a4 {[%clk 0:04:16.8]} 32. Ra6 {[%clk 0:03:07.8]} 32... a3 {[%clk 0:04:16.2]} 33.
Ra4 {[%clk 0:03:04.4]} 33... Kg7 {[%clk 0:04:13.3]} 34. Kg3 {[%clk 0:03:03.4]}
34... Re1 {[%clk 0:04:10.6]} 35. Rxa3 {[%clk 0:02:59.4]} 35... Rxe5 {[%clk
0:04:09.5]} 36. f4 {[%clk 0:02:52.4]} 36... Re4 {[%clk 0:04:07.9]} 37. Rf3
{[%clk 0:02:48.9]} 37... d4 {[%clk 0:04:06.8]} 38. Rd3 {[%clk 0:02:43.2]} 38...
Re3+ {[%clk 0:04:05.8]} 39. Rxe3 {[%clk 0:02:42]} 39... dxe3 {[%clk 0:04:05.7]}
40. Kf3 {[%clk 0:02:40.7]} 40... Kf6 {[%clk 0:04:04.8]} 41. Kxe3 {[%clk
0:02:40]} 41... h5 {[%clk 0:04:03.8]} 42. h4 {[%clk 0:02:38.2]} 42... Kf5 {[%clk
0:04:02.7]} 43. Kf3 {[%clk 0:02:32.8]} 43... e5 {[%clk 0:04:02]} 44. fxe5 {[%clk
0:02:30.1]} 44... Kxe5 {[%clk 0:04:01.9]} 45. g3 {[%clk 0:02:27.3]} 45... f5
{[%clk 0:04:00.6]} 46. Ke3 {[%clk 0:02:24]} 46... Ke6 {[%clk 0:03:57.2]} 47. Kf4
{[%clk 0:02:22.9]} 47... Kf6 {[%clk 0:03:56]} 48. Kf3 {[%clk 0:02:16.9]} 48...
g5 {[%clk 0:03:51.8]} 49. hxg5+ {[%clk 0:02:14]} 49... Kxg5 {[%clk 0:03:51.7]}
50. Kf2 {[%clk 0:02:08]} 50... Kg4 {[%clk 0:03:42.3]} 51. Kg2 {[%clk 0:02:04.6]}
51... Kg5 {[%clk 0:03:20]} 52. Kf3 {[%clk 0:02:01]} 52... Kg6 {[%clk 0:03:18.2]}
53. Kf4 {[%clk 0:01:58.3]} 53... Kf6 {[%clk 0:03:17.6]} 54. Kf3 {[%clk
0:01:54.9]} 54... Ke5 {[%clk 0:03:15.2]} 55. Ke3 {[%clk 0:01:52.4]} 55... Ke6
{[%clk 0:03:11]} 56. Kf4 {[%clk 0:01:50.8]} 56... Kf6 {[%clk 0:03:10.2]} 57. Kf3
{[%clk 0:01:49.3]} 57... Kg5 {[%clk 0:03:07.1]} 58. Kf2 {[%clk 0:01:45.7]} 58...
h4 {[%clk 0:03:02.9]} 59. Kf3 {[%clk 0:01:39.8]} 59... h3 {[%clk 0:02:59.2]} 60.
Kf2 {[%clk 0:01:36.2]} 60... Kg4 {[%clk 0:02:58.1]} 61. Kg1 {[%clk 0:01:26.3]}
61... Kxg3 {[%clk 0:02:56.8]} 62. Kh1 {[%clk 0:01:25.4]} 62... f4 {[%clk
0:02:55.7]} 63. Kg1 {[%clk 0:01:24.3]} 63... Kf3 {[%clk 0:02:53.3]} 64. Kh2
{[%clk 0:01:22.8]} 64... Ke2 {[%clk 0:02:52.6]} 65. Kxh3 {[%clk 0:01:19.8]}
65... f3 {[%clk 0:02:52.5]} 66. Kg3 {[%clk 0:01:18.2]} 66... f2 {[%clk 0:02:52]}
67. Kh2 {[%clk 0:01:05.7]} 67... f1=Q {[%clk 0:02:51.9]} 68. Kg3 {[%clk
0:01:03.7]} 68... Qf5 {[%clk 0:02:50]} 69. Kh2 {[%clk 0:01:02.2]} 69... Qg4
{[%clk 0:02:48.2]} 70. Kh1 {[%clk 0:01:00.4]} 70... Kf2 {[%clk 0:02:47.1]} 71.
Kh2 {[%clk 0:00:59.2]} 71... Qh5# {[%clk 0:02:46.6]} 0-1

[Event "Live Chess"]
[Site "Chess.com"]
[Date "2024.06.02"]
[Round "-"]
[White "CarmelJane"]
[Black "Queensandpawns"]
[Result "0-1"]
[WhiteElo "2032"]
[BlackElo "2263"]
[TimeControl "300"]
[EndTime "5:04:02 PDT"]
[Termination "Queensandpawns won by resignation"]

1. Nf3 {[%clk 0:04:57.3]} 1... g5 {[%clk 0:04:58.9]} 2. Nxg5 {[%clk 0:04:55.5]}
2... e5 {[%clk 0:04:58.7]} 3. d4 {[%clk 0:04:51]} 3... e4 {[%clk 0:04:57.1]} 4.
Nxe4 {[%clk 0:04:49.2]} 4... d5 {[%clk 0:04:56.5]} 5. Ng3 {[%clk 0:04:47.5]}
5... h5 {[%clk 0:04:55.5]} 6. h4 {[%clk 0:04:46]} 6... Nf6 {[%clk 0:04:50.4]} 7.
Bg5 {[%clk 0:04:44.4]} 7... Be7 {[%clk 0:04:49.6]} 8. Nc3 {[%clk 0:04:40.7]}
8... c6 {[%clk 0:04:40.5]} 9. e3 {[%clk 0:04:28.9]} 9... Ng4 {[%clk 0:04:39.6]}
10. Bxe7 {[%clk 0:04:26.1]} 10... Qxe7 {[%clk 0:04:39.5]} 11. Qf3 {[%clk
0:04:18.1]} 11... Be6 {[%clk 0:04:32.6]} 12. O-O-O {[%clk 0:04:15.3]} 12... b5
{[%clk 0:04:29.7]} 13. Nce2 {[%clk 0:04:08.4]} 13... Qc7 {[%clk 0:04:26.3]} 14.
Nf4 {[%clk 0:04:03.9]} 14... Qa5 {[%clk 0:04:24.6]} 15. Kb1 {[%clk 0:03:58.6]}
15... Nd7 {[%clk 0:04:22.8]} 16. Qe2 {[%clk 0:03:36.6]} 16... O-O-O {[%clk
0:04:20.9]} 17. f3 {[%clk 0:03:34.7]} 17... Ngf6 {[%clk 0:04:19.4]} 18. Nxe6
{[%clk 0:03:33.5]} 18... fxe6 {[%clk 0:04:19.3]} 19. Qd3 {[%clk 0:03:30.3]}
19... Rhg8 {[%clk 0:04:12.2]} 20. Ne2 {[%clk 0:03:28.6]} 20... e5 {[%clk
0:04:10.4]} 21. Qf5 {[%clk 0:03:10.4]} 21... e4 {[%clk 0:04:06.8]} 22. Nc1
{[%clk 0:02:56.8]} 22... Rdf8 {[%clk 0:03:59.2]} 23. Nb3 {[%clk 0:02:54.6]}
23... Qb6 {[%clk 0:03:58.3]} 24. Qh3 {[%clk 0:02:36.7]} 24... exf3 {[%clk
0:03:54.1]} 25. gxf3 {[%clk 0:02:33.8]} 25... Kb7 {[%clk 0:03:49]} 26. Bd3
{[%clk 0:02:31.5]} 26... a5 {[%clk 0:03:48.2]} 27. Bf5 {[%clk 0:02:28.1]} 27...
Rd8 {[%clk 0:03:42.3]} 28. e4 {[%clk 0:02:22.8]} 28... dxe4 {[%clk 0:03:41.3]}
29. fxe4 {[%clk 0:02:22.7]} 29... a4 {[%clk 0:03:40.9]} 30. e5 {[%clk
0:02:01.8]} 30... Ng4 {[%clk 0:03:34.4]} 31. Bxd7 {[%clk 0:01:30.2]} 31... axb3
{[%clk 0:03:30.3]} 32. Bxg4 {[%clk 0:01:26]} 32... bxc2+ {[%clk 0:03:23.1]} 33.
Kxc2 {[%clk 0:01:23]} 33... Rxg4 {[%clk 0:03:23]} 34. e6 {[%clk 0:01:13.3]}
34... Rgxd4 {[%clk 0:03:17.9]} 35. Qc3 {[%clk 0:00:41.2]} 35... Rc4 {[%clk
0:03:13.9]} 36. Qxc4 {[%clk 0:00:36.6]} 36... bxc4 {[%clk 0:03:11.1]} 37. e7
{[%clk 0:00:36]} 37... Qf2+ {[%clk 0:03:02.5]} 38. Kb1 {[%clk 0:00:30.5]} 38...
Qf5+ {[%clk 0:02:50.9]} 39. Kc1 {[%clk 0:00:19.1]} 39... Qf4+ {[%clk 0:02:50.1]}
40. Kb1 {[%clk 0:00:17.6]} 40... Qe4+ {[%clk 0:02:49.2]} 41. Kc1 {[%clk
0:00:16.2]} 41... Rxd1+ {[%clk 0:02:48.7]} 42. Rxd1 {[%clk 0:00:14]} 42... Qxe7
{[%clk 0:02:48.6]} 0-1

[Event "Live Chess"]
[Site "Chess.com"]
[Date "2024.06.02"]
[Round "-"]
[White "KyryloPoluliakh"]
[Black "TheSmoulderingMaster"]
[Result "0-1"]
[WhiteElo "1531"]
[BlackElo "1773"]
[TimeControl "300"]
[EndTime "5:04:13 PDT"]
[Termination "TheSmoulderingMaster won by checkmate"]

1. c4 {[%clk 0:04:55.8]} 1... e5 {[%clk 0:04:58.6]} 2. Nc3 {[%clk 0:04:55.4]}
2... Nf6 {[%clk 0:04:56.3]} 3. g3 {[%clk 0:04:55]} 3... Nc6 {[%clk 0:04:55]} 4.
Bg2 {[%clk 0:04:54.6]} 4... Bb4 {[%clk 0:04:50.8]} 5. e3 {[%clk 0:04:52.6]} 5...
O-O {[%clk 0:04:49]} 6. Nge2 {[%clk 0:04:49.9]} 6... d6 {[%clk 0:04:48.2]} 7. d4
{[%clk 0:04:48.3]} 7... exd4 {[%clk 0:04:46.6]} 8. exd4 {[%clk 0:04:47.9]} 8...
Bg4 {[%clk 0:04:44.5]} 9. O-O {[%clk 0:04:46.8]} 9... Re8 {[%clk 0:04:42.1]} 10.
Be3 {[%clk 0:04:45.9]} 10... Bh5 {[%clk 0:04:39.1]} 11. a3 {[%clk 0:04:43.2]}
11... Bxc3 {[%clk 0:04:37.3]} 12. Nxc3 {[%clk 0:04:41.4]} 12... Bxd1 {[%clk
0:04:35.2]} 13. Raxd1 {[%clk 0:04:38.1]} 13... Ng4 {[%clk 0:04:33.8]} 14. Rfe1
{[%clk 0:04:34.1]} 14... Nxe3 {[%clk 0:04:32.7]} 15. fxe3 {[%clk 0:04:33.6]}
15... Ne7 {[%clk 0:04:29.5]} 16. b4 {[%clk 0:04:27.8]} 16... Nf5 {[%clk
0:04:28.2]} 17. Bxb7 {[%clk 0:04:25.7]} 17... Rb8 {[%clk 0:04:26]} 18. Bc6
{[%clk 0:04:22.7]} 18... Rxe3 {[%clk 0:04:24.1]} 19. Rxe3 {[%clk 0:04:19]} 19...
Nxe3 {[%clk 0:04:23.1]} 20. Nd5 {[%clk 0:04:17.2]} 20... Nxc4 {[%clk 0:04:18.4]}
21. Rc1 {[%clk 0:04:14.1]} 21... Nxa3 {[%clk 0:04:17.3]} 22. Ba4 {[%clk
0:04:13]} 22... a5 {[%clk 0:04:07.4]} 23. Nxc7 {[%clk 0:04:10.7]} 23... Rxb4
{[%clk 0:04:03.4]} 24. Bd7 {[%clk 0:03:55.4]} 24... Qxd7 {[%clk 0:03:58.7]} 25.
Nb5 {[%clk 0:03:53.5]} 25... Nxb5 {[%clk 0:03:52.7]} 26. d5 {[%clk 0:03:52.1]}
26... Qf5 {[%clk 0:03:46.6]} 27. h4 {[%clk 0:03:44]} 27... Rb2 {[%clk
0:03:42.9]} 28. Kh1 {[%clk 0:03:34.7]} 28... Qxd5+ {[%clk 0:03:40]} 29. Kg1
{[%clk 0:03:32.2]} 29... Qg2# {[%clk 0:03:38.2]} 0-1

[Event "Live Chess"]
[Site "Chess.com"]
[Date "2024.06.02"]
[Round "-"]
[White "raclement"]
[Black "kylet1990"]
[Result "1-0"]
[WhiteElo "1723"]
[BlackElo "750"]
[TimeControl "300"]
[EndTime "5:04:25 PDT"]
[Termination "raclement won by resignation"]

1. Nf3 {[%clk 0:04:55.4]} 1... c6 {[%clk 0:04:57.1]} 2. g3 {[%clk 0:04:53]} 2...
d5 {[%clk 0:04:55.8]} 3. Bg2 {[%clk 0:04:51.4]} 3... Bf5 {[%clk 0:04:53.6]} 4.
O-O {[%clk 0:04:49.1]} 4... Nf6 {[%clk 0:04:51.7]} 5. d3 {[%clk 0:04:45.5]} 5...
e6 {[%clk 0:04:50.8]} 6. Nbd2 {[%clk 0:04:43.4]} 6... Bc5 {[%clk 0:04:48.9]} 7.
Re1 {[%clk 0:04:41.8]} 7... Ng4 {[%clk 0:04:43.7]} 8. d4 {[%clk 0:04:40.2]} 8...
Bb6 {[%clk 0:04:41.3]} 9. h3 {[%clk 0:04:36.7]} 9... Nf6 {[%clk 0:04:39.4]} 10.
c3 {[%clk 0:04:34]} 10... Nbd7 {[%clk 0:04:37.6]} 11. Nf1 {[%clk 0:04:30.9]}
11... O-O {[%clk 0:04:36.2]} 12. Bg5 {[%clk 0:04:29.3]} 12... h6 {[%clk
0:04:34.1]} 13. Bxf6 {[%clk 0:04:26.4]} 13... Nxf6 {[%clk 0:04:31.2]} 14. Ne5
{[%clk 0:04:24.1]} 14... Bc7 {[%clk 0:04:26]} 15. Nd3 {[%clk 0:04:19.3]} 15...
Ne4 {[%clk 0:04:20.5]} 16. g4 {[%clk 0:04:05.4]} 16... Bg6 {[%clk 0:04:14.7]}
17. f3 {[%clk 0:03:57.9]} 17... Nf6 {[%clk 0:04:07.9]} 18. e4 {[%clk 0:03:53.6]}
18... Qd6 {[%clk 0:04:06.1]} 19. e5 {[%clk 0:03:52.3]} 19... Qe7 {[%clk
0:04:00.7]} 20. exf6 {[%clk 0:03:50.6]} 20... Qd6 {[%clk 0:03:55.6]} 21. Ne5
{[%clk 0:03:49]} 21... gxf6 {[%clk 0:03:53]} 22. Nxg6 {[%clk 0:03:47.3]} 22...
Qh2+ {[%clk 0:03:50.9]} 23. Nxh2 {[%clk 0:03:44.9]} 1-0

[Event "Live Chess"]
[Site "Chess.com"]
[Date "2024.06.02"]
[Round "-"]
[White "road2gm5000"]
[Black "Colm_Buckley"]
[Result "0-1"]
[WhiteElo "1115"]
[BlackElo "1875"]
[TimeControl "300"]
[EndTime "5:05:03 PDT"]
[Termination "Colm_Buckley won by resignation"]

1. e4 {[%clk 0:04:59]} 1... c6 {[%clk 0:04:57.7]} 2. d4 {[%clk 0:04:56.8]} 2...
d5 {[%clk 0:04:57.2]} 3. exd5 {[%clk 0:04:56.7]} 3... cxd5 {[%clk 0:04:55.6]} 4.
Bd3 {[%clk 0:04:56.2]} 4... Nc6 {[%clk 0:04:54.7]} 5. c3 {[%clk 0:04:55.7]} 5...
Nf6 {[%clk 0:04:53.3]} 6. Bg5 {[%clk 0:04:54.1]} 6... Ne4 {[%clk 0:04:39.1]} 7.
Bxe4 {[%clk 0:04:44.2]} 7... dxe4 {[%clk 0:04:37.4]} 8. Nd2 {[%clk 0:04:41.7]}
8... Bf5 {[%clk 0:04:30.4]} 9. Qe2 {[%clk 0:04:31.1]} 9... Qd5 {[%clk
0:04:22.5]} 10. f3 {[%clk 0:04:28.3]} 10... exf3 {[%clk 0:04:18.3]} 11. Ngxf3
{[%clk 0:04:27.1]} 11... e6 {[%clk 0:04:11.6]} 12. Ne5 {[%clk 0:04:20.5]} 12...
Nxe5 {[%clk 0:04:08.3]} 13. Qxe5 {[%clk 0:04:19.7]} 13... Qxe5+ {[%clk
0:04:06.5]} 14. dxe5 {[%clk 0:04:19.6]} 14... h6 {[%clk 0:04:02.7]} 15. Bf4
{[%clk 0:04:17.9]} 15... Bc5 {[%clk 0:03:58.4]} 16. O-O-O {[%clk 0:04:08.2]}
16... Ke7 {[%clk 0:03:49.9]} 17. Nb3 {[%clk 0:04:07.3]} 17... Bb6 {[%clk
0:03:46.1]} 18. Nd4 {[%clk 0:04:04.7]} 18... Be4 {[%clk 0:03:39.3]} 19. Rhg1
{[%clk 0:04:00]} 19... Rhd8 {[%clk 0:03:33.9]} 20. g3 {[%clk 0:03:47.7]} 20...
Rac8 {[%clk 0:03:30.1]} 21. Rge1 {[%clk 0:03:36.7]} 21... Bg6 {[%clk 0:03:26.8]}
22. Nb3 {[%clk 0:03:21.8]} 22... Bh5 {[%clk 0:03:12.2]} 23. Rxd8 {[%clk
0:03:18]} 23... Rxd8 {[%clk 0:03:09.9]} 24. h3 {[%clk 0:03:14.4]} 24... g5
{[%clk 0:03:08]} 25. Bd2 {[%clk 0:03:08.5]} 25... Bf2 {[%clk 0:03:03]} 26. Re4
{[%clk 0:02:46]} 26... Bxg3 {[%clk 0:02:57.8]} 27. Rb4 {[%clk 0:02:45.3]} 27...
b6 {[%clk 0:02:50.9]} 28. Ra4 {[%clk 0:02:36.2]} 28... Rd7 {[%clk 0:02:46.5]}
29. Re4 {[%clk 0:02:27.2]} 29... f5 {[%clk 0:02:41.3]} 30. exf6+ {[%clk
0:02:25.2]} 30... Kxf6 {[%clk 0:02:40.1]} 31. Be1 {[%clk 0:02:23.7]} 31... Rd1+
{[%clk 0:02:35.6]} 32. Kc2 {[%clk 0:02:22]} 32... Rxe1 {[%clk 0:02:34.4]} 33.
Ra4 {[%clk 0:02:18.5]} 33... Bd1+ {[%clk 0:02:27]} 34. Kd2 {[%clk 0:02:15.6]}
34... Bxb3 {[%clk 0:02:25.1]} 35. axb3 {[%clk 0:02:15.5]} 35... a5 {[%clk
0:02:23.4]} 36. Rc4 {[%clk 0:02:11.7]} 36... Re5 {[%clk 0:02:17.7]} 0-1

[Event "Live Chess"]
[Site "Chess.com"]
[Date "2024.06.02"]
[Round "-"]
[White "stevochess11"]
[Black "ACM42"]
[Result "0-1"]
[WhiteElo "1707"]
[BlackElo "2201"]
[TimeControl "300"]
[EndTime "5:05:13 PDT"]
[Termination "ACM42 won - game abandoned"]

1. d4 {[%clk 0:04:57.7]} 1... Nf6 {[%clk 0:04:58.3]} 2. Nf3 {[%clk 0:04:56.8]}
2... g6 {[%clk 0:04:57.5]} 3. Nc3 {[%clk 0:04:55.8]} 3... Bg7 {[%clk 0:04:56.7]}
4. e4 {[%clk 0:04:54.1]} 4... O-O {[%clk 0:04:55.9]} 5. Be3 {[%clk 0:04:50.9]}
5... d6 {[%clk 0:04:54.8]} 6. Qd2 {[%clk 0:04:49.8]} 6... Bg4 {[%clk 0:04:50.1]}
7. Be2 {[%clk 0:04:46]} 7... e5 {[%clk 0:04:41.8]} 8. h3 {[%clk 0:04:44.1]} 8...
Bxf3 {[%clk 0:04:39.2]} 9. Bxf3 {[%clk 0:04:43.1]} 9... exd4 {[%clk 0:04:37.4]}
10. Bxd4 {[%clk 0:04:41.6]} 10... Re8 {[%clk 0:04:31.1]} 11. O-O {[%clk
0:04:40]} 11... Nc6 {[%clk 0:04:29.9]} 12. Rfe1 {[%clk 0:04:25.8]} 12... Nxd4
{[%clk 0:04:27.1]} 13. Qxd4 {[%clk 0:04:25.6]} 13... Nxe4 {[%clk 0:04:22.9]} 14.
Qc4 {[%clk 0:04:15.1]} 14... Nxc3 {[%clk 0:04:20.6]} 15. bxc3 {[%clk 0:04:14.6]}
15... c6 {[%clk 0:04:16.2]} 16. Qb4 {[%clk 0:03:59.9]} 16... Qc7 {[%clk
0:04:07.5]} 17. Rxe8+ {[%clk 0:03:54.9]} 17... Rxe8 {[%clk 0:04:05.9]} 18. Rb1
{[%clk 0:03:54.8]} 18... Re7 {[%clk 0:03:59.5]} 19. c4 {[%clk 0:03:31.6]} 19...
Bd4 {[%clk 0:03:57.4]} 20. Qd2 {[%clk 0:03:22.5]} 20... Bc5 {[%clk 0:03:54.5]}
21. Qh6 {[%clk 0:03:17.1]} 21... Qd8 {[%clk 0:03:45.2]} 22. Qg5 {[%clk
0:03:11.1]} 22... Re8 {[%clk 0:03:42.2]} 23. Qxd8 {[%clk 0:03:07.4]} 23... Rxd8
{[%clk 0:03:40.9]} 24. Rxb7 {[%clk 0:03:06.8]} 24... Re8 {[%clk 0:03:34.5]} 25.
Bxc6 {[%clk 0:03:00.9]} 25... Re1+ {[%clk 0:03:33.3]} 26. Kh2 {[%clk 0:02:59.7]}
26... Bxf2 {[%clk 0:02:59.4]} 27. Bd5 {[%clk 0:02:57.5]} 27... Rd1 {[%clk
0:02:34.9]} 28. Bxf7+ {[%clk 0:02:51.7]} 28... Kg7 {[%clk 0:02:30.9]} 29. Bd5+
{[%clk 0:02:43.1]} 29... Kf6 {[%clk 0:02:19.3]} 0-1

[Event "Live Chess"]
[Site "Chess.com"]
[Date "2024.06.02"]
[Round "-"]
[White "Grace6363"]
[Black "missedJariChance"]
[Result "0-1"]
[WhiteElo "1142"]
[BlackElo "1360"]
[TimeControl "300"]
[EndTime "5:05:15 PDT"]
[Termination "missedJariChance won by resignation"]

1. d4 {[%clk 0:04:56.6]} 1... d5 {[%clk 0:04:57.9]} 2. c4 {[%clk 0:04:55.9]}
2... e6 {[%clk 0:04:56.6]} 3. Nf3 {[%clk 0:04:54.7]} 3... Nf6 {[%clk 0:04:55.5]}
4. cxd5 {[%clk 0:04:53.8]} 4... Nxd5 {[%clk 0:04:51.7]} 5. e4 {[%clk 0:04:52.6]}
5... Bb4+ {[%clk 0:04:43.7]} 6. Bd2 {[%clk 0:04:51.5]} 6... Bxd2+ {[%clk
0:04:41.2]} 7. Qxd2 {[%clk 0:04:49.6]} 7... Nf6 {[%clk 0:04:37.5]} 8. Nc3 {[%clk
0:04:45.3]} 8... O-O {[%clk 0:04:34.8]} 9. e5 {[%clk 0:04:44.4]} 9... Nd5 {[%clk
0:04:32.5]} 10. Bc4 {[%clk 0:04:42]} 10... Nxc3 {[%clk 0:04:26]} 11. bxc3 {[%clk
0:04:40.8]} 11... b6 {[%clk 0:04:18.6]} 12. Ng5 {[%clk 0:04:38.8]} 12... h6
{[%clk 0:04:14.6]} 13. Ne4 {[%clk 0:04:37.5]} 13... Bb7 {[%clk 0:04:10.8]} 14.
Bd3 {[%clk 0:04:35.7]} 14... Nc6 {[%clk 0:03:55.5]} 15. O-O {[%clk 0:04:31.2]}
15... Na5 {[%clk 0:03:53.9]} 16. f3 {[%clk 0:04:27.1]} 16... Qe7 {[%clk
0:03:46]} 17. Ng3 {[%clk 0:04:21.9]} 17... Rad8 {[%clk 0:03:42.6]} 18. Nh5
{[%clk 0:04:15.6]} 18... c5 {[%clk 0:03:39.7]} 19. Qe3 {[%clk 0:04:09.5]} 19...
cxd4 {[%clk 0:03:32.6]} 20. cxd4 {[%clk 0:04:08.6]} 20... Qb4 {[%clk 0:03:27.3]}
21. Nf6+ {[%clk 0:03:47.1]} 21... Kh8 {[%clk 0:03:14]} 22. Be4 {[%clk
0:03:11.4]} 22... Bxe4 {[%clk 0:03:02]} 23. fxe4 {[%clk 0:03:09.2]} 23... Rxd4
{[%clk 0:02:56.8]} 24. Nd7 {[%clk 0:02:51]} 24... Rxe4 {[%clk 0:02:45.5]} 25.
Qg3 {[%clk 0:02:45.5]} 25... Rg4 {[%clk 0:02:28.8]} 26. Qh3 {[%clk 0:02:21.5]}
26... Qd4+ {[%clk 0:02:24.2]} 27. Kh1 {[%clk 0:02:10.4]} 27... Rd8 {[%clk
0:01:49.3]} 28. Rxf7 {[%clk 0:02:05.8]} 28... Rxd7 {[%clk 0:01:38.2]} 29. Rxd7
{[%clk 0:02:03.6]} 29... Qxa1+ {[%clk 0:01:33]} 0-1